bitfinex/quotes_SOLUSD_20250123
["timestamp","ask_amount","ask_price","bid_price","bid_amount"]
[1737607175235,43.25667691,245.07,245.06,0.03003317]
[1737607176030,4.0804,245.07,245.06,0.03003317]
[1737607176533,44.02193132,245.07,245.06,3.317e-05]
[1737607177646,23.25667691,245.07,245.06,3.317e-05]
[1737607177842,19.17627691,245.07,245.06,3.317e-05]
[1737607178555,23.25667691,245.07,245.06,3.317e-05]
[1737607179545,20.0,245.05,245.04,3.387e-05]
[1737607179755,63.71857633,245.05,245.04,3.387e-05]
[1737607180048,39.94169233,245.05,245.02,0.48003387]
[1737607180248,39.17627691,245.03,245.02,0.48003387]
[1737607180747,43.25737691,245.03,245.02,0.48003387]
[1737607181255,23.25737691,245.03,245.02,0.48003387]
[1737607182154,4.0811,245.03,245.02,0.48003387]
[1737607182451,23.25737691,245.03,245.02,0.48003387]
[1737607183742,24.02284904,245.03,245.02,0.48003387]
[1737607184037,23.25737691,245.03,245.02,0.48003387]
[1737607185154,23.25737691,245.03,245.02,0.51003387]
[1737607185355,23.25737691,245.03,245.02,3.387e-05]
[1737607185556,23.25737691,245.03,245.0,3.387e-05]
[1737607185732,19.17627691,245.01,245.0,3.387e-05]
[1737607186753,23.25767691,245.01,245.0,3.387e-05]
[1737607188742,23.25767691,245.01,245.0,3.387e-05]
[1737607197738,4.0814,245.01,245.0,3.387e-05]
[1737607198474,4.0814,245.01,245.0,0.03003387]
[1737607198663,23.25767691,245.01,245.0,0.03003387]
[1737607198959,23.32067691,245.01,245.0,0.03003387]
[1737607199748,23.32067691,245.01,245.0,3.387e-05]
[1737607199749,24.08616004,245.01,245.0,3.387e-05]
[1737607200459,23.32067691,245.01,245.0,3.387e-05]
[1737607201052,24.08616132,245.01,245.0,3.387e-05]
[1737607201451,23.32067691,245.01,245.0,3.387e-05]
[1737607202860,24.0861343,245.01,245.0,3.387e-05]
[1737607203556,23.32067691,245.01,245.0,3.387e-05]
[1737607205245,0.063,245.01,245.0,3.387e-05]
[1737607205661,0.063,245.01,245.0,5.00003387]
[1737607205973,0.063,245.01,245.0,3.387e-05]
[1737607208479,0.063,245.01,245.0,42.95319478]
[1737607208984,0.063,245.07,245.03,5.0]
[1737607209188,0.063,245.07,245.04,19.17627691]
[1737607209370,0.063,245.07,245.06,19.17627691]
[1737607209575,19.17627691,245.21,245.09,7.5]
[1737607209751,19.17627691,245.23,245.13,26.67627691]
[1737607209950,0.063,245.24,245.16,6.3923]
[1737607210448,0.063,245.24,245.21,19.17627691]
[1737607210773,0.063,245.24,245.23,42.95316091]
[1737607210971,0.063,245.26,245.24,5.0]
[1737607211268,0.063,245.26,245.23,19.17627691]
[1737607211579,0.063,245.26,245.19,19.17627691]
[1737607211947,19.17627691,245.23,245.16,6.3923]
[1737607212143,19.17627691,245.21,245.16,6.3923]
[1737607212361,19.17627691,245.17,245.1,6.3923]
[1737607212564,19.17627691,245.19,245.11,7.5]
[1737607212867,19.17627691,245.2,245.12,19.17627691]
[1737607213249,19.17627691,245.2,245.1,345.06857691]
[1737607213448,0.063,245.26,245.1,345.06857691]
[1737607213449,19.17627691,245.22,245.12,19.17627691]
[1737607213861,19.17627691,245.24,245.15,5.0]
[1737607214176,19.17627691,245.24,245.16,19.17627691]
[1737607214471,19.23927691,245.26,245.16,19.17627691]
[1737607214775,0.063,245.26,245.2,19.17627691]
[1737607215074,0.063,245.26,245.2,24.17627691]
[1737607215375,0.063,245.26,245.22,19.17627691]
[1737607215764,0.063,245.26,245.23,23.776884]
[1737607215971,0.063,245.26,245.25,6.3923]
[1737607216449,0.063,245.26,245.25,30.169184]
[1737607216869,0.063,245.32,245.28,12.5]
[1737607217074,0.063,245.32,245.31,19.17627691]
[1737607217452,0.063,245.32,245.29,19.17627691]
[1737607217969,0.063,245.32,245.31,19.17627691]
[1737607218364,0.01560037,245.32,245.31,19.17627691]
[1737607218567,0.01560037,245.32,245.31,42.95316091]
[1737607218946,0.01560037,245.32,245.31,19.17627691]
[1737607219174,0.01560037,245.32,245.25,25.56857691]
[1737607219480,19.17627691,245.31,245.25,6.3923]
[1737607220059,19.17627691,245.27,245.17,25.56857691]
[1737607220271,19.17627691,245.23,245.17,6.3923]
[1737607220463,19.17627691,245.21,245.11,19.17627691]
[1737607221060,19.17627691,245.19,245.11,19.17627691]
[1737607221675,19.17627691,245.21,245.11,19.17627691]
[1737607221866,19.17627691,245.23,245.13,19.17627691]
[1737607222189,19.17627691,245.25,245.15,19.17627691]
[1737607222870,19.17627691,245.2,245.17,0.03]
[1737607223583,19.17627691,245.22,245.17,0.03]
[1737607224081,19.17627691,245.2,245.17,0.03]
[1737607224385,19.17627691,245.18,245.17,0.03]
[1737607225700,23.25487691,245.18,245.17,0.03]
[1737607227360,24.01996334,245.18,245.17,0.03]
[1737607228582,23.25487691,245.18,245.17,0.03]
[1737607230476,19.17627691,245.18,245.17,0.03]
[1737607230666,19.17627691,245.2,245.17,0.03]
[1737607231081,19.17627691,245.22,245.17,0.03]
[1737607231779,19.17627691,245.2,245.17,0.03]
[1737607232376,19.17627691,245.18,245.17,0.03]
[1737607233967,23.25487691,245.18,245.17,0.03]
[1737607237089,33.45137691,245.18,245.03,6.0178]
[1737607237389,19.17627691,245.13,245.03,6.0178]
[1737607238088,19.17627691,245.05,245.0,3.387e-05]
[1737607238279,0.76504633,245.12,245.0,3.387e-05]
[1737607238280,19.17627691,245.03,245.0,3.387e-05]
[1737607238786,19.17627691,245.01,245.0,3.387e-05]
[1737607239989,23.25767691,245.01,245.0,3.387e-05]
[1737607242094,19.17627691,245.03,245.0,3.387e-05]
[1737607245408,19.17627691,245.05,245.0,3.387e-05]
[1737607245775,19.17627691,245.07,245.0,3.387e-05]
[1737607246177,19.17627691,245.09,245.0,19.17631078]
[1737607246373,19.17627691,245.11,245.02,19.17627691]
[1737607246680,19.17627691,245.13,245.02,19.17627691]
[1737607246894,19.17627691,245.11,245.02,19.17627691]
[1737607247697,19.17627691,245.09,245.0,19.17631078]
[1737607247995,19.17627691,245.05,245.0,3.387e-05]
[1737607248194,19.17627691,245.03,245.0,3.387e-05]
[1737607248497,19.17627691,245.01,245.0,3.387e-05]
[1737607249700,19.17627691,245.04,245.0,3.387e-05]
[1737607249903,35.49103291,245.04,245.0,3.387e-05]
[1737607250076,19.17627691,245.04,245.0,3.387e-05]
[1737607250482,16.314429,245.05,245.0,3.387e-05]
[1737607250483,19.17627691,245.02,245.0,3.387e-05]
[1737607252489,4.0814,245.01,245.0,3.387e-05]
[1737607256575,19.17627691,245.02,245.0,3.387e-05]
[1737607256895,19.17627691,245.04,245.0,3.387e-05]
[1737607257299,20.395329,245.05,245.0,3.387e-05]
[1737607257300,19.17627691,245.02,245.0,3.387e-05]
[1737607257503,19.17627691,245.04,245.0,3.387e-05]
[1737607259610,23.25727691,245.04,245.0,3.387e-05]
[1737607260311,19.17627691,245.04,245.0,3.387e-05]
[1737607260513,23.25697691,245.06,245.0,3.387e-05]
[1737607260813,19.17627691,245.06,245.0,3.387e-05]
[1737607261006,23.25687691,245.06,245.0,3.387e-05]
[1737607261192,19.17627691,245.01,245.0,3.387e-05]
[1737607262291,23.25767691,245.01,245.0,3.387e-05]
[1737607263783,47.03456091,245.01,245.0,3.387e-05]
[1737607263987,55.30009261,245.01,245.0,3.387e-05]
[1737607264192,34.22680861,245.01,244.84,19.17627691]
[1737607264489,19.17627691,244.96,244.86,19.17627691]
[1737607264696,19.17627691,244.96,244.86,23.26007691]
[1737607264896,23.25837691,244.98,244.88,19.17627691]
[1737607265105,19.17627691,244.96,244.86,19.17627691]
[1737607265417,19.17627691,244.94,244.82,19.17627691]
[1737607266421,4.0827,244.93,244.82,19.17627691]
[1737607266591,4.0827,244.93,244.81,6.2458]
[1737607266908,4.0827,244.93,244.82,19.17627691]
[1737607267113,19.17627691,244.94,244.84,19.17627691]
[1737607267314,23.25897691,244.94,244.84,19.17627691]
[1737607268015,19.17627691,244.94,244.84,19.17627691]
[1737607268215,19.17627691,244.94,244.82,321.0845]
[1737607268385,19.17627691,244.98,244.88,19.17627691]
[1737607268792,19.17627691,245.0,244.93,6.1896]
[1737607270314,19.17627691,244.96,244.93,6.1896]
[1737607270729,19.17627691,244.96,244.93,6.2196]
[1737607271814,19.17627691,244.98,244.93,6.2196]
[1737607273425,19.17627691,244.96,244.93,0.03]
[1737607275517,23.25857691,244.96,244.93,0.03]
[1737607277297,23.25827691,244.98,244.93,0.03]
[1737607277790,16.08061813,244.98,244.93,0.03]
[1737607278709,11.99861813,244.98,244.93,0.03]
[1737607278891,11.99861813,245.0,244.93,0.03]
[1737607279096,11.99861813,244.98,244.93,0.03]
[1737607279424,4.0814,245.01,244.93,0.03]
[1737607279628,11.99861813,245.04,244.94,11.99861813]
[1737607279796,11.99861813,245.06,244.96,11.99861813]
[1737607280133,11.99861813,245.08,244.98,11.99861813]
[1737607280843,11.99861813,245.14,245.04,11.99861813]
[1737607281041,11.99861813,245.16,245.06,11.99861813]
[1737607281240,0.063,245.17,245.08,11.99861813]
[1737607281409,0.063,245.17,245.1,13.64841813]
[1737607281609,0.063,245.17,245.11,6.5537]
[1737607281939,0.063,245.17,245.12,19.16563739]
[1737607282303,0.063,245.17,245.11,6.5537]
[1737607282709,19.16563739,245.14,245.11,6.5537]
[1737607282946,19.16563739,245.16,245.11,6.5537]
[1737607283950,19.16563739,245.14,245.11,6.5537]
[1737607284939,19.16563739,245.16,245.11,6.5537]
[1737607285323,19.16563739,245.14,245.11,6.5537]
[1737607286039,19.16563739,245.12,245.11,6.5537]
[1737607286331,19.16563739,245.12,245.04,6.5537]
[1737607286532,19.16563739,245.14,245.06,19.16563739]
[1737607286713,19.16563739,245.16,245.06,19.16563739]
[1737607287044,19.16563739,245.16,245.08,19.16563739]
[1737607287533,19.16563739,245.14,245.06,19.16563739]
[1737607287740,19.16563739,245.14,245.04,25.71933739]
[1737607288634,23.24503739,245.14,245.04,25.71933739]
[1737607289033,0.063,245.17,245.08,19.16563739]
[1737607289550,19.16563739,245.16,245.08,19.16563739]
[1737607289925,19.16563739,245.16,245.06,19.16563739]
[1737607290117,19.16563739,245.14,245.04,25.71933739]
[1737607290317,19.16563739,245.14,245.04,30.71933739]
[1737607290542,19.16563739,245.14,245.04,29.80013739]
[1737607290714,19.16563739,245.14,245.05,312.0]
[1737607291113,19.16563739,245.14,245.04,34.80013739]
[1737607291338,19.16563739,245.16,245.06,19.16563739]
[1737607291538,0.063,245.17,245.08,19.16563739]
[1737607291736,19.16563739,245.16,245.08,19.16563739]
[1737607291933,19.16563739,245.14,245.04,34.80013739]
[1737607292131,19.16563739,245.12,245.04,6.5537]
[1737607292329,19.16563739,245.08,245.04,6.5537]
[1737607292727,23.24593739,245.08,244.99,6.1583]
[1737607292940,19.16563739,245.08,244.99,6.1583]
[1737607293216,19.16563739,245.12,245.02,19.16563739]
[1737607293631,19.16563739,245.14,245.06,19.16563739]
[1737607293957,19.16563739,245.16,245.06,19.16563739]
[1737607294126,19.16563739,245.16,245.07,28.776884]
[1737607294330,19.16563739,245.16,245.08,19.16563739]
[1737607294946,19.16563739,245.16,245.08,23.24583739]
[1737607295254,19.16563739,245.16,245.08,19.16563739]
[1737607295731,0.063,245.17,245.08,19.16563739]
[1737607296133,0.063,245.17,245.1,19.16563739]
[1737607296435,0.063,245.17,245.12,24.16563739]
[1737607296855,0.063,245.17,245.12,19.16563739]
[1737607297053,0.063,245.17,245.12,23.24513739]
[1737607297260,0.063,245.17,245.12,28.24513739]
[1737607297431,0.063,245.17,245.12,23.24513739]
[1737607297630,0.063,245.17,245.12,335.24513739]
[1737607298840,0.063,245.17,245.12,312.0]
[1737607299039,19.16563739,245.16,245.09,7.7179]
[1737607299351,19.16563739,245.14,245.09,6.1583]
[1737607299733,19.16563739,245.12,245.04,6.1583]
[1737607300539,22.14833739,245.12,245.04,6.1583]
[1737607301343,19.16563739,245.08,245.04,6.1583]
[1737607302366,19.16563739,245.1,245.04,6.1583]
[1737607302552,23.24563739,245.1,245.04,6.1583]
[1737607302749,10.1975,245.16,245.04,6.1583]
[1737607302750,19.16563739,245.14,245.04,30.32393739]
[1737607302958,0.063,245.17,245.08,19.16563739]
[1737607303459,0.063,245.17,245.11,23.776884]
[1737607303644,0.063,245.17,245.12,19.16563739]
[1737607304145,0.063,245.17,245.11,23.776884]
[1737607305048,0.063,245.17,245.12,4.0796]
[1737607305871,0.063,245.17,245.12,316.0796]
[1737607306046,0.063,245.17,245.12,335.24523739]
[1737607306486,0.063,245.17,245.13,7.7179]
[1737607306648,0.063,245.17,245.16,19.16563739]
[1737607307161,0.063,245.17,245.16,47.94252139]
[1737607307848,0.063,245.17,245.16,67.10815878]
[1737607308160,0.01560037,245.32,245.24,19.16563739]
[1737607308361,0.01560037,245.32,245.3,19.16563739]
[1737607308555,0.01560037,245.32,245.3,23.24213739]
[1737607309044,0.01560037,245.32,245.31,28.776884]
[1737607309249,0.01560037,245.32,245.31,36.276884]
[1737607309543,0.063,245.48,245.31,36.276884]
[1737607309544,0.063,245.48,245.36,5.0]
[1737607309764,0.063,245.48,245.41,19.16563739]
[1737607310137,4.1367,245.48,245.41,19.16563739]
[1737607310356,0.063,245.48,245.39,19.16563739]
[1737607310655,4.0745,245.43,245.37,6.1583]
[1737607310861,23.24013739,245.43,245.37,6.1583]
[1737607311042,4.1377,245.42,245.37,6.1583]
[1737607312347,0.063,245.42,245.37,6.1583]
[1737607312754,0.063,245.42,245.37,25.32393739]
[1737607312957,0.063,245.42,245.39,19.16563739]
[1737607313144,0.063,245.42,245.39,331.16563739]
[1737607313349,0.063,245.42,245.4,23.776884]
[1737607313667,0.063,245.42,245.41,42.94252139]
[1737607313845,0.063,245.42,245.41,50.44252139]
[1737607314168,0.063,245.42,245.41,23.776884]
[1737607315238,0.063,245.42,245.4,23.24053739]
[1737607315239,0.063,245.42,245.4,19.16563739]
[1737607316558,0.063,245.42,245.41,23.776884]
[1737607316759,0.063,245.42,245.41,28.776884]
[1737607316939,0.063,245.42,245.41,23.776884]
[1737607317444,0.063,245.42,245.41,32.851684]
[1737607318050,0.063,245.48,245.47,5.0]
[1737607318252,0.063,245.48,245.47,31.66563739]
[1737607318482,0.063,245.49,245.47,55.44252139]
[1737607318663,0.063,245.49,245.48,27.850484]
[1737607319261,0.063,245.57,245.52,23.776884]
[1737607319463,0.063,245.57,245.56,42.94252139]
[1737607320057,0.063,245.57,245.56,354.94252139]
[1737607321083,0.063,245.57,245.56,331.16563739]
[1737607322269,0.063,245.57,245.56,19.16563739]
[1737607322881,4.1352,245.57,245.5,19.16563739]
[1737607323254,4.1352,245.57,245.48,25.23343739]
[1737607323574,19.16563739,245.52,245.44,19.16563739]
[1737607324166,19.16563739,245.54,245.46,23.23953739]
[1737607324469,19.16563739,245.54,245.46,19.16563739]
[1737607324769,19.16563739,245.54,245.44,19.16563739]
[1737607325173,19.16563739,245.54,245.45,23.776884]
[1737607325475,23.23793739,245.56,245.47,23.776884]
[1737607327378,4.1352,245.57,245.49,23.776884]
[1737607328472,19.16563739,245.54,245.46,19.16563739]
[1737607328775,19.16563739,245.54,245.47,23.776884]
[1737607329967,19.16563739,245.56,245.48,19.16563739]
[1737607330777,4.0724,245.55,245.48,19.16563739]
[1737607331270,0.063,245.57,245.52,19.16563739]
[1737607331483,4.1352,245.57,245.5,19.16563739]
[1737607331656,0.063,245.57,245.53,23.776884]
[1737607331858,0.063,245.57,245.55,23.776884]
[1737607332260,0.063,245.57,245.54,19.16563739]
[1737607332576,0.063,245.57,245.48,19.16563739]
[1737607332763,19.16563739,245.56,245.48,19.16563739]
[1737607333170,19.16563739,245.56,245.47,0.03]
[1737607333661,19.16563739,245.54,245.47,23.806884]
[1737607334276,19.16563739,245.51,245.47,0.03]
[1737607334679,23.23803739,245.55,245.47,0.03]
[1737607334887,4.0724,245.55,245.47,19.19563739]
[1737607335190,23.23803739,245.55,245.47,19.19563739]
[1737607335775,33.41923739,245.55,245.47,0.03]
[1737607335984,19.16563739,245.51,245.47,0.03]
[1737607336884,19.16563739,245.55,245.47,0.03]
[1737607337191,19.16563739,245.55,245.47,19.19563739]
[1737607337380,0.063,245.57,245.52,23.776884]
[1737607337595,0.063,245.57,245.53,19.16563739]
[1737607337764,0.063,245.57,245.54,23.776884]
[1737607338388,0.063,245.57,245.52,23.776884]
[1737607338594,4.1351,245.57,245.52,23.776884]
[1737607338898,0.063,245.57,245.48,23.23913739]
[1737607339075,19.16563739,245.55,245.47,0.03]
[1737607339600,19.16563739,245.55,245.47,23.806884]
[1737607339892,23.30083739,245.57,245.47,23.806884]
[1737607340100,19.16563739,245.55,245.47,23.806884]
[1737607340897,4.0724,245.56,245.47,23.806884]
[1737607341272,19.16563739,245.55,245.47,23.806884]
[1737607341899,4.0724,245.56,245.47,23.806884]
[1737607342499,19.22863739,245.57,245.49,23.776884]
[1737607342671,0.063,245.57,245.53,23.776884]
[1737607342871,0.063,245.57,245.55,23.776884]
[1737607343091,0.063,245.55,245.52,23.23843739]
[1737607343271,0.063,245.55,245.53,23.776884]
[1737607345088,0.063,245.55,245.5,4.0731]
[1737607345272,19.22863739,245.55,245.47,0.03]
[1737607345484,19.22863739,245.55,245.47,316.1037]
[1737607345787,4.0726,245.54,245.47,312.03]
[1737607346592,19.16563739,245.53,245.47,0.03]
[1737607346892,23.23893739,245.51,245.47,0.03]
[1737607347086,19.16563739,245.49,245.47,0.03]
[1737607347788,24.54077992,245.48,245.47,0.0001]
[1737607348096,20.0,245.45,245.28,23.24243739]
[1737607348308,19.16563739,245.38,245.3,19.16563739]
[1737607348676,19.16563739,245.38,245.31,43.776884]
[1737607349595,0.76408735,245.5,245.31,43.776884]
[1737607349596,19.16563739,245.42,245.34,23.776884]
[1737607349782,19.16563739,245.46,245.38,19.16563739]
[1737607350201,19.16563739,245.48,245.39,23.776884]
[1737607351194,19.16563739,245.46,245.36,19.16563739]
[1737607351405,0.76390232,245.49,245.32,19.16563739]
[1737607351574,19.16563739,245.4,245.32,4.0762]
[1737607352302,19.16563739,245.4,245.33,23.776884]
[1737607353174,19.16563739,245.4,245.33,335.776884]
[1737607353370,19.16563739,245.38,245.33,339.852884]
[1737607354276,19.16563739,245.42,245.34,19.16563739]
[1737607354483,19.16563739,245.45,245.37,23.776884]
[1737607354683,19.16563739,245.47,245.38,19.16563739]
[1737607355215,19.16563739,245.47,245.39,4.0751]
[1737607355378,19.16563739,245.47,245.34,7.5]
[1737607355379,19.16563739,245.43,245.35,4.0756]
[1737607355578,19.16563739,245.43,245.38,20.0]
[1737607355988,19.16563739,245.43,245.35,27.852484]
[1737607356282,19.16563739,245.45,245.37,23.776884]
[1737607356473,19.22863739,245.47,245.4,23.776884]
[1737607356801,0.063,245.47,245.4,42.94252139]
[1737607357007,0.063,245.47,245.43,27.851284]
[1737607357188,0.063,245.47,245.46,43.776884]
[1737607357504,0.063,245.47,245.46,355.776884]
[1737607358288,0.063,245.47,245.46,374.94252139]
[1737607358700,0.063,245.47,245.46,62.94252139]
[1737607359109,0.0001,245.47,245.46,149.91642139]
[1737607359284,19.16563739,245.65,245.55,23.776884]
[1737607359477,19.16563739,245.65,245.57,23.776884]
[1737607359781,19.22863739,245.67,245.59,23.776884]
[1737607360402,19.16563739,245.65,245.56,19.16563739]
[1737607360594,19.16563739,245.63,245.54,19.16563739]
[1737607360902,19.16563739,245.61,245.52,19.16563739]
[1737607361111,19.16563739,245.61,245.52,23.23853739]
[1737607361404,23.23713739,245.61,245.52,19.16563739]
[1737607361581,23.23713739,245.61,245.54,312.0]
[1737607362204,19.16563739,245.59,245.54,312.0]
[1737607362408,19.16563739,245.57,245.48,19.16563739]
[1737607362904,19.16563739,245.55,245.49,23.776884]
[1737607363116,19.16563739,245.53,245.47,6.5318]
[1737607363493,19.16563739,245.51,245.42,19.16563739]
[1737607363881,19.16563739,245.51,245.41,8.0522]
[1737607364310,19.16563739,245.51,245.42,23.776884]
[1737607364483,19.16563739,245.49,245.41,6.4011]
[1737607364900,19.16563739,245.47,245.38,19.16563739]
[1737607365202,14.2536,245.55,245.41,23.776884]
[1737607365203,19.16563739,245.49,245.41,23.776884]
[1737607365410,19.16563739,245.51,245.43,23.776884]
[1737607365811,19.16563739,245.47,245.36,25.56673739]
[1737607365983,19.16563739,245.43,245.36,6.4011]
[1737607366406,19.16563739,245.41,245.32,19.19563739]
[1737607366923,19.16563739,245.39,245.32,0.03]
[1737607367209,19.16563739,245.33,245.32,0.03]
[1737607369486,19.16563739,245.35,245.32,0.03]
[1737607369713,19.16563739,245.37,245.32,0.03]
[1737607369912,19.16563739,245.39,245.32,0.03]
[1737607370590,19.16563739,245.41,245.32,0.03]
[1737607370783,19.16563739,245.37,245.32,0.03]
[1737607370982,19.16563739,245.33,245.32,0.03]
[1737607371207,19.16563739,245.35,245.32,0.03]
[1737607371391,19.16563739,245.37,245.32,0.03]
[1737607371596,19.16563739,245.39,245.32,0.03]
[1737607371906,19.16563739,245.41,245.32,23.806884]
[1737607372586,19.16563739,245.41,245.32,335.806884]
[1737607372788,23.24013739,245.43,245.34,23.776884]
[1737607374790,19.16563739,245.43,245.34,23.776884]
[1737607375015,19.16563739,245.43,245.34,27.852684]
[1737607376116,19.16563739,245.43,245.36,23.776884]
[1737607376495,23.24013739,245.43,245.36,23.776884]
[1737607376696,23.24013739,245.43,245.34,23.776884]
[1737607377385,19.16563739,245.43,245.34,23.776884]
[1737607377590,0.063,245.47,245.41,19.16563739]
[1737607377785,0.063,245.47,245.42,23.776884]
[1737607378094,0.063,245.47,245.44,23.776884]
[1737607379733,0.063,245.47,245.44,335.776884]
[1737607380618,0.063,245.47,245.46,23.776884]
[1737607381911,4.1369,245.47,245.39,25.56673739]
[1737607382291,19.16563739,245.45,245.35,19.16563739]
[1737607382491,4.0741,245.46,245.37,19.16563739]
[1737607382698,19.22863739,245.47,245.4,23.776884]
[1737607383120,0.063,245.47,245.4,23.776884]
[1737607383302,0.063,245.47,245.42,23.776884]
[1737607383501,0.063,245.47,245.44,23.776884]
[1737607383710,0.063,245.47,245.46,23.776884]
[1737607384297,0.063,245.47,245.46,335.776884]
[1737607384618,0.063,245.47,245.46,339.850784]
[1737607385015,0.063,245.47,245.46,335.776884]
[1737607385399,0.063,245.47,245.38,1.59246285]
[1737607385400,0.063,245.47,245.39,19.16563739]
[1737607386122,0.063,245.47,245.33,25.56673739]
[1737607386123,19.16563739,245.42,245.33,25.56673739]
[1737607386511,19.16563739,245.42,245.34,23.776884]
[1737607386810,23.24043739,245.42,245.34,23.776884]
[1737607387591,19.16563739,245.4,245.34,23.776884]
[1737607387796,19.16563739,245.4,245.33,6.4011]
[1737607388125,19.16563739,245.4,245.32,0.03]
[1737607388316,19.16563739,245.38,245.32,0.03]
[1737607389209,19.16563739,245.4,245.32,0.03]
[1737607389524,19.16563739,245.38,245.32,0.03]
[1737607389900,23.30253739,245.47,245.37,19.16563739]
[1737607390224,23.30253739,245.47,245.38,23.776884]
[1737607391207,19.16563739,245.45,245.37,23.776884]
[1737607392128,19.16563739,245.45,245.37,335.776884]
[1737607392635,19.22863739,245.47,245.37,359.01792139]
[1737607392818,23.30243739,245.47,245.37,359.01792139]
[1737607393130,23.30243739,245.47,245.37,47.01792139]
[1737607393324,23.30243739,245.47,245.37,42.94252139]
[1737607393532,19.16563739,245.45,245.35,43.24133739]
[1737607394042,0.063,245.47,245.4,23.776884]
[1737607394338,0.063,245.47,245.42,23.776884]
[1737607396030,0.063,245.47,245.43,312.0]
[1737607396328,23.30243739,245.47,245.37,19.16563739]
[1737607396728,23.30243739,245.47,245.38,23.776884]
[1737607397303,4.0743,245.44,245.37,23.776884]
[1737607397717,4.0743,245.44,245.36,23.776884]
[1737607398429,19.16563739,245.45,245.36,23.776884]
[1737607398611,0.063,245.47,245.38,19.16563739]
[1737607398927,0.063,245.47,245.41,23.776884]
[1737607399234,0.063,245.47,245.42,4.0746]
[1737607399435,0.063,245.47,245.46,19.16563739]
[1737607399617,0.063,245.47,245.46,42.94252139]
[1737607401251,0.063,245.47,245.41,6.2779]
[1737607401429,0.063,245.47,245.41,10.3526]
[1737607401848,0.063,245.47,245.41,30.054784]
[1737607402046,0.063,245.47,245.41,6.2779]
[1737607402256,0.063,245.47,245.42,23.776884]
[1737607402628,0.063,245.47,245.46,0.03]
[1737607403127,0.063,245.47,245.46,42.97252139]
[1737607403439,0.063,245.47,245.46,354.97252139]
[1737607403657,0.063,245.47,245.46,359.04642139]
[1737607404035,0.063,245.47,245.46,42.97252139]
[1737607404227,0.063,245.47,245.46,23.806884]
[1737607406229,0.063,245.47,245.46,0.03]
[1737607406562,19.22863739,245.47,245.46,0.03]
[1737607408624,0.063,245.47,245.46,0.03]
[1737607409845,39.22863739,245.47,245.46,0.03]
[1737607412826,19.22863739,245.47,245.46,0.03]
[1737607414750,0.063,245.47,245.46,0.03]
[1737607415326,0.063,245.47,245.46,42.97252139]
[1737607415723,0.063,245.47,245.46,354.97252139]
[1737607415935,0.063,245.47,245.46,359.04642139]
[1737607418138,0.063,245.47,245.46,339.880784]
[1737607418537,0.063,245.47,245.46,359.04642139]
[1737607418726,0.0001,245.47,245.46,359.04642139]
[1737607418925,0.0001,245.47,245.46,449.44642139]
[1737607419125,0.063,245.55,245.5,20.0]
[1737607419342,0.063,245.55,245.53,23.776884]
[1737607420135,0.063,245.55,245.54,47.01512139]
[1737607420441,19.16563739,245.65,245.58,20.0]
[1737607420641,19.16563739,245.65,245.55,23.776884]
[1737607420642,0.063,245.68,245.62,23.776884]
[1737607422159,0.063,245.68,245.61,23.776884]
[1737607422457,0.063,245.68,245.63,23.776884]
[1737607422761,0.063,245.68,245.61,23.776884]
[1737607422941,19.16563739,245.65,245.61,23.776884]
[1737607423148,19.16563739,245.65,245.54,6.6183]
[1737607423149,19.16563739,245.63,245.55,19.16563739]
[1737607423464,19.16563739,245.65,245.56,23.776884]
[1737607423759,19.16563739,245.65,245.55,23.23803739]
[1737607424160,19.16563739,245.65,245.56,23.776884]
[1737607424648,0.063,245.67,245.6,23.776884]
[1737607425050,19.22863739,245.67,245.6,23.776884]
[1737607425247,19.16563739,245.63,245.55,23.23803739]
[1737607425549,19.16563739,245.63,245.56,23.776884]
[1737607425872,19.22863739,245.67,245.58,23.776884]
[1737607426240,19.22863739,245.67,245.6,23.776884]
[1737607426740,0.063,245.67,245.6,23.776884]
[1737607426947,0.063,245.67,245.62,23.776884]
[1737607427765,0.063,245.67,245.64,23.776884]
[1737607428854,0.063,245.67,245.64,335.776884]
[1737607430373,0.063,245.67,245.66,23.776884]
[1737607431641,0.063,245.72,245.66,23.776884]